[Event "Titled Tuesday Blitz July 11 Late 2023"]
[White "EsmeraldasAnderson03"]
[Black "Bruedigam, Martin"]
[BlackFideId "24608033"]
[WhiteElo "2396"]
[BlackElo "2553"]
[Result "0-1"]
[Round "3"]
[TimeControl "180+2"]
[Date "2023.07.11"]
[WhiteClock "0:00:00"]
[BlackClock "0:00:54"]
[Board "104"]

1. d4 {[%clk 0:03:00]}  Nf6 {[%clk 0:02:57]} 2. Nf3 {[%clk 0:02:58]}  g6 {[%clk 0:02:57]} 3. Bf4 {[%clk 0:02:57]}  Bg7 {[%clk 0:02:56]} 4. e3 {[%clk 0:02:56]}  O-O {[%clk 0:02:54]} 5. Be2 {[%clk 0:02:50]}  c5 {[%clk 0:02:53]} 6. c3 {[%clk 0:02:48]}  b6 {[%clk 0:02:53]} 7. Nbd2 {[%clk 0:02:44]}  Bb7 {[%clk 0:02:53]} 8. O-O {[%clk 0:02:43]}  d6 {[%clk 0:02:53]} 9. h3 {[%clk 0:02:42]}  Nbd7 {[%clk 0:02:52]} 10. Bh2 {[%clk 0:02:40]}  Qc7 {[%clk 0:02:49]} 11. Re1 {[%clk 0:02:39]}  a6 {[%clk 0:02:45]} 12. a4 {[%clk 0:02:35]}  e5 {[%clk 0:02:38]} 13. Nc4 {[%clk 0:02:12]}  Ne4 {[%clk 0:02:27]} 14. Qb3 {[%clk 0:01:37]}  Bd5 {[%clk 0:02:16]} 15. Red1 {[%clk 0:01:32]}  cxd4 {[%clk 0:01:42]} 16. cxd4 {[%clk 0:01:31]}  exd4 {[%clk 0:01:42]} 17. Rac1 {[%clk 0:01:21]}  dxe3 {[%clk 0:01:30]} 18. Qxe3 {[%clk 0:01:20]}  Qb7 {[%clk 0:01:29]} 19. Nxd6 {[%clk 0:01:09]}  Nxd6 {[%clk 0:01:29]} 20. Bxd6 {[%clk 0:01:09]}  Rfe8 {[%clk 0:01:29]} 21. Qd2 {[%clk 0:01:10]}  Bc6 {[%clk 0:01:16]} 22. Bb4 {[%clk 0:00:11]}  Bxa4 {[%clk 0:01:13]} 23. b3 {[%clk 0:00:09]}  Bxb3 {[%clk 0:01:11]} 24. Qxd7 {[%clk 0:00:08]}  Qxd7 {[%clk 0:01:11]} 25. Rxd7 {[%clk 0:00:08]}  Rxe2 {[%clk 0:01:11]} 26. Rcc7 {[%clk 0:00:07]}  a5 {[%clk 0:01:05]} 27. Bc3 {[%clk 0:00:06]}  Bxc3 {[%clk 0:01:01]} 28. Rxc3 {[%clk 0:00:07]}  a4 {[%clk 0:00:59]} 29. Nd4 {[%clk 0:00:08]}  Re1+ {[%clk 0:00:59]} 30. Kh2 {[%clk 0:00:09]}  Rd1 {[%clk 0:00:58]} 31. Rd6 {[%clk 0:00:06]}  a3 {[%clk 0:00:53]} 32. Rxb3 {[%clk 0:00:00]}  a2 {[%clk 0:00:54]} 0-1


[Site "https://www.chess.com"]

[Event "Titled Tuesday Blitz July 11 Late 2023"]
[White "Przybylski, Wojciech"]
[Black "Davidson, Kevin"]
[WhiteFideId "1117599"]
[BlackFideId "2056810"]
[WhiteElo "2550"]
[BlackElo "2380"]
[Result "1-0"]
[Round "3"]
[TimeControl "180+2"]
[Date "2023.07.11"]
[WhiteClock "0:01:51"]
[BlackClock "0:00:02"]
[Board "105"]

1. e4 {[%clk 0:03:00]}  c5 {[%clk 0:02:59]} 2. Nf3 {[%clk 0:03:00]}  d6 {[%clk 0:02:59]} 3. d4 {[%clk 0:03:00]}  cxd4 {[%clk 0:03:00]} 4. Nxd4 {[%clk 0:03:00]}  Nf6 {[%clk 0:03:01]} 5. Nc3 {[%clk 0:03:01]}  a6 {[%clk 0:03:01]} 6. Bg5 {[%clk 0:03:00]}  e6 {[%clk 0:02:59]} 7. Qe2 {[%clk 0:03:00]}  Be7 {[%clk 0:02:57]} 8. O-O-O {[%clk 0:02:59]}  Qc7 {[%clk 0:02:50]} 9. f4 {[%clk 0:02:58]}  h6 {[%clk 0:02:49]} 10. Bh4 {[%clk 0:02:57]}  Nxe4 {[%clk 0:02:47]} 11. Nxe4 {[%clk 0:02:51]}  Bxh4 {[%clk 0:02:47]} 12. f5 {[%clk 0:02:44]}  e5 {[%clk 0:01:53]} 13. Ne6 {[%clk 0:02:43]}  Bxe6 {[%clk 0:01:43]} 14. fxe6 {[%clk 0:02:42]}  O-O {[%clk 0:01:35]} 15. Nxd6 {[%clk 0:02:28]}  fxe6 {[%clk 0:01:22]} 16. Qg4 {[%clk 0:02:27]}  Bg5+ {[%clk 0:01:11]} 17. Kb1 {[%clk 0:02:27]}  Nc6 {[%clk 0:01:04]} 18. Qxe6+ {[%clk 0:02:18]}  Kh8 {[%clk 0:01:03]} 19. Bc4 {[%clk 0:02:12]}  Nd8 {[%clk 0:00:37]} 20. Qg6 {[%clk 0:02:03]}  e4 {[%clk 0:00:13]} 21. Rhf1 {[%clk 0:01:56]}  Bf6 {[%clk 0:00:05]} 22. Rxf6 {[%clk 0:01:49]}  Rxf6 {[%clk 0:00:05]} 23. Qe8+ {[%clk 0:01:49]}  Kh7 {[%clk 0:00:05]} 24. Bg8+ {[%clk 0:01:50]}  Kh8 {[%clk 0:00:04]} 25. Bf7+ {[%clk 0:01:50]}  Kh7 {[%clk 0:00:02]} 26. Qg8# {[%clk 0:01:51]} 1-0


[Site "https://www.chess.com"]

[Event "Titled Tuesday Blitz July 11 Late 2023"]
[White "Krzywda, Andrzej"]
[Black "only_strong_moves"]
[WhiteFideId "1114565"]
[WhiteElo "2379"]
[BlackElo "2550"]
[Result "0-1"]
[Round "3"]
[TimeControl "180+2"]
[Date "2023.07.11"]
[WhiteClock "0:00:05"]
[BlackClock "0:00:08"]
[Board "106"]

1. e4 {[%clk 0:03:00]}  e5 {[%clk 0:02:58]} 2. Nf3 {[%clk 0:03:01]}  Nc6 {[%clk 0:02:59]} 3. Bb5 {[%clk 0:03:01]}  Nf6 {[%clk 0:02:59]} 4. d3 {[%clk 0:03:00]}  Bc5 {[%clk 0:03:00]} 5. Bxc6 {[%clk 0:03:00]}  dxc6 {[%clk 0:03:01]} 6. O-O {[%clk 0:03:01]}  Nd7 {[%clk 0:02:26]} 7. c3 {[%clk 0:03:00]}  O-O {[%clk 0:02:19]} 8. d4 {[%clk 0:02:59]}  Bd6 {[%clk 0:02:19]} 9. Bg5 {[%clk 0:02:57]}  Be7 {[%clk 0:02:15]} 10. Be3 {[%clk 0:02:42]}  Nf6 {[%clk 0:01:59]} 11. Nbd2 {[%clk 0:02:37]}  exd4 {[%clk 0:01:59]} 12. cxd4 {[%clk 0:02:32]}  Ng4 {[%clk 0:01:59]} 13. Bf4 {[%clk 0:02:32]}  f5 {[%clk 0:01:54]} 14. e5 {[%clk 0:02:22]}  g5 {[%clk 0:01:48]} 15. h3 {[%clk 0:02:06]}  gxf4 {[%clk 0:01:44]} 16. hxg4 {[%clk 0:02:06]}  fxg4 {[%clk 0:01:45]} 17. Nh2 {[%clk 0:01:49]}  Qxd4 {[%clk 0:01:29]} 18. Nxg4 {[%clk 0:01:45]}  f3 {[%clk 0:01:28]} 19. gxf3 {[%clk 0:01:34]}  Bxg4 {[%clk 0:00:53]} 20. fxg4 {[%clk 0:01:34]}  Bh4 {[%clk 0:00:50]} 21. Qe2 {[%clk 0:01:13]}  Rf4 {[%clk 0:00:34]} 22. Kh2 {[%clk 0:01:04]}  Raf8 {[%clk 0:00:30]} 23. f3 {[%clk 0:00:57]}  R4f7 {[%clk 0:00:26]} 24. Nb3 {[%clk 0:00:46]}  Qf4+ {[%clk 0:00:26]} 25. Kg1 {[%clk 0:00:46]}  Qg3+ {[%clk 0:00:21]} 26. Qg2 {[%clk 0:00:46]}  Rxf3 {[%clk 0:00:18]} 27. Qxg3 {[%clk 0:00:34]}  Rxg3+ {[%clk 0:00:17]} 28. Kh2 {[%clk 0:00:35]}  Rgf3 {[%clk 0:00:11]} 29. Rxf3 {[%clk 0:00:26]}  Rxf3 {[%clk 0:00:12]} 30. Rd1 {[%clk 0:00:23]}  Kg7 {[%clk 0:00:08]} 31. Rd7+ {[%clk 0:00:22]}  Rf7 {[%clk 0:00:07]} 32. Rd3 {[%clk 0:00:13]}  Bf2 {[%clk 0:00:07]} 33. Nd2 {[%clk 0:00:12]}  Bh4 {[%clk 0:00:04]} 34. Ne4 {[%clk 0:00:11]}  Be7 {[%clk 0:00:05]} 35. Kg3 {[%clk 0:00:11]}  b6 {[%clk 0:00:05]} 36. g5 {[%clk 0:00:09]}  c5 {[%clk 0:00:05]} 37. Kg4 {[%clk 0:00:09]}  Kg6 {[%clk 0:00:05]} 38. Rd7 {[%clk 0:00:09]}  Bf8 {[%clk 0:00:05]} 39. Rd8 {[%clk 0:00:08]}  Bg7 {[%clk 0:00:04]} 40. e6 {[%clk 0:00:07]}  Re7 {[%clk 0:00:04]} 41. Nf6 {[%clk 0:00:04]}  Bxf6 {[%clk 0:00:04]} 42. gxf6 {[%clk 0:00:04]}  Kxf6 {[%clk 0:00:05]} 43. Rf8+ {[%clk 0:00:02]}  Kxe6 {[%clk 0:00:05]} 44. Ra8 {[%clk 0:00:03]}  a5 {[%clk 0:00:05]} 45. Rh8 {[%clk 0:00:02]}  c4 {[%clk 0:00:06]} 46. Kf4 {[%clk 0:00:02]}  Kd6 {[%clk 0:00:06]} 47. Rg8 {[%clk 0:00:02]}  Kc6 {[%clk 0:00:06]} 48. Rg2 {[%clk 0:00:02]}  Rd7 {[%clk 0:00:07]} 49. Ke5 {[%clk 0:00:02]}  Kb5 {[%clk 0:00:07]} 50. Ke6 {[%clk 0:00:02]}  Rd3 {[%clk 0:00:07]} 51. Rh2 {[%clk 0:00:02]}  c5 {[%clk 0:00:08]} 52. Rxh7 {[%clk 0:00:02]}  Rd2 {[%clk 0:00:08]} 53. Ke5 {[%clk 0:00:02]}  Rxb2 {[%clk 0:00:09]} 54. Kd6 {[%clk 0:00:03]}  Rxa2 {[%clk 0:00:09]} 55. Rb7 {[%clk 0:00:03]}  c3 {[%clk 0:00:07]} 56. Rh7 {[%clk 0:00:03]}  c2 {[%clk 0:00:08]} 57. Rh1 {[%clk 0:00:04]}  Rb2 {[%clk 0:00:08]} 58. Rc1 {[%clk 0:00:04]}  a4 {[%clk 0:00:08]} 59. Kd5 {[%clk 0:00:05]}  a3 {[%clk 0:00:09]} 60. Ke4 {[%clk 0:00:05]}  a2 {[%clk 0:00:09]} 61. Kd3 {[%clk 0:00:06]}  Rb1 {[%clk 0:00:09]} 62. Rxc2 {[%clk 0:00:06]}  a1=Q {[%clk 0:00:09]} 63. Rb2+ {[%clk 0:00:03]}  Qxb2 {[%clk 0:00:07]} 64. Ke3 {[%clk 0:00:04]}  Re1+ {[%clk 0:00:07]} 65. Kf3 {[%clk 0:00:04]}  Qf6+ {[%clk 0:00:08]} 66. Kg2 {[%clk 0:00:05]}  Re8 {[%clk 0:00:08]} 67. Kh3 {[%clk 0:00:05]}  Rg8 {[%clk 0:00:08]} 68. Kh2 {[%clk 0:00:05]}  Qh6# {[%clk 0:00:08]} 0-1


[Site "https://www.chess.com"]

[Event "Titled Tuesday Blitz July 11 Late 2023"]
[White "Harriott, Tyrell"]
[Black "Arencibia Monduy, Antonio"]
[WhiteFideId "2086484"]
[BlackFideId "3507939"]
[WhiteElo "2378"]
[BlackElo "2549"]
[Result "1-0"]
[Round "3"]
[TimeControl "180+2"]
[Date "2023.07.11"]
[WhiteClock "0:00:20"]
[BlackClock "0:00:00"]
[Board "107"]

1. d4 {[%clk 0:02:57]}  e6 {[%clk 0:02:59]} 2. e3 {[%clk 0:02:56]}  Nf6 {[%clk 0:03:00]} 3. Bd3 {[%clk 0:02:50]}  d5 {[%clk 0:03:00]} 4. f4 {[%clk 0:02:50]}  b6 {[%clk 0:02:59]} 5. c3 {[%clk 0:02:50]}  Bb7 {[%clk 0:02:59]} 6. Nf3 {[%clk 0:02:50]}  Be7 {[%clk 0:02:59]} 7. Nbd2 {[%clk 0:02:49]}  Ne4 {[%clk 0:02:55]} 8. O-O {[%clk 0:02:47]}  O-O {[%clk 0:02:53]} 9. Ne5 {[%clk 0:02:47]}  Nd7 {[%clk 0:02:50]} 10. Qg4 {[%clk 0:02:45]}  f5 {[%clk 0:02:48]} 11. Qh3 {[%clk 0:02:45]}  Nxe5 {[%clk 0:02:48]} 12. fxe5 {[%clk 0:02:37]}  Nxd2 {[%clk 0:02:48]} 13. Bxd2 {[%clk 0:02:37]}  g6 {[%clk 0:02:23]} 14. g4 {[%clk 0:02:36]}  Qd7 {[%clk 0:02:16]} 15. Kh1 {[%clk 0:02:33]}  c5 {[%clk 0:02:16]} 16. Rg1 {[%clk 0:02:30]}  a5 {[%clk 0:02:11]} 17. gxf5 {[%clk 0:02:30]}  exf5 {[%clk 0:02:09]} 18. Qh6 {[%clk 0:02:23]}  Rf7 {[%clk 0:01:56]} 19. Rg3 {[%clk 0:02:16]}  Ba6 {[%clk 0:01:31]} 20. Rag1 {[%clk 0:02:13]}  Rg7 {[%clk 0:01:24]} 21. Bc2 {[%clk 0:02:06]}  Rf8 {[%clk 0:01:02]} 22. h4 {[%clk 0:01:54]}  Qd8 {[%clk 0:00:55]} 23. h5 {[%clk 0:01:50]}  g5 {[%clk 0:00:44]} 24. Qe6+ {[%clk 0:01:46]}  Kh8 {[%clk 0:00:44]} 25. Bxf5 {[%clk 0:01:43]}  Bc8 {[%clk 0:00:44]} 26. Qxc8 {[%clk 0:01:35]}  Qxc8 {[%clk 0:00:44]} 27. Bxc8 {[%clk 0:01:35]}  Rxc8 {[%clk 0:00:45]} 28. Rf3 {[%clk 0:01:32]}  h6 {[%clk 0:00:41]} 29. Rgf1 {[%clk 0:01:31]}  Kg8 {[%clk 0:00:41]} 30. Kg2 {[%clk 0:01:26]}  c4 {[%clk 0:00:37]} 31. Kg3 {[%clk 0:01:25]}  b5 {[%clk 0:00:37]} 32. Kg4 {[%clk 0:01:24]}  b4 {[%clk 0:00:37]} 33. Rf5 {[%clk 0:01:16]}  Rc6 {[%clk 0:00:34]} 34. Kf3 {[%clk 0:01:09]}  Rf7 {[%clk 0:00:31]} 35. e4 {[%clk 0:01:06]}  bxc3 {[%clk 0:00:22]} 36. Bxc3 {[%clk 0:01:05]}  Rxf5+ {[%clk 0:00:17]} 37. exf5 {[%clk 0:01:04]}  Bb4 {[%clk 0:00:16]} 38. Kg4 {[%clk 0:00:56]}  Kf7 {[%clk 0:00:15]} 39. Re1 {[%clk 0:00:52]}  Rc8 {[%clk 0:00:08]} 40. Rb1 {[%clk 0:00:49]}  Ke7 {[%clk 0:00:06]} 41. a3 {[%clk 0:00:47]}  Rb8 {[%clk 0:00:02]} 42. axb4 {[%clk 0:00:46]}  axb4 {[%clk 0:00:03]} 43. Bd2 {[%clk 0:00:45]}  Rb7 {[%clk 0:00:02]} 44. Ra1 {[%clk 0:00:44]}  Kd7 {[%clk 0:00:01]} 45. Ra6 {[%clk 0:00:43]}  c3 {[%clk 0:00:01]} 46. bxc3 {[%clk 0:00:40]}  b3 {[%clk 0:00:02]} 47. Bc1 {[%clk 0:00:37]}  b2 {[%clk 0:00:01]} 48. Bxb2 {[%clk 0:00:37]}  Rxb2 {[%clk 0:00:02]} 49. Rxh6 {[%clk 0:00:36]}  Rc2 {[%clk 0:00:03]} 50. Rd6+ {[%clk 0:00:34]}  Ke7 {[%clk 0:00:03]} 51. f6+ {[%clk 0:00:33]}  Kf7 {[%clk 0:00:03]} 52. Kxg5 {[%clk 0:00:31]}  Rg2+ {[%clk 0:00:02]} 53. Kh6 {[%clk 0:00:27]}  Rg3 {[%clk 0:00:02]} 54. Rxd5 {[%clk 0:00:24]}  Ke6 {[%clk 0:00:02]} 55. Rd6+ {[%clk 0:00:24]}  Kf7 {[%clk 0:00:02]} 56. Rd7+ {[%clk 0:00:24]}  Kf8 {[%clk 0:00:02]} 57. e6 {[%clk 0:00:23]}  Ke8 {[%clk 0:00:01]} 58. f7+ {[%clk 0:00:22]}  Kf8 {[%clk 0:00:01]} 59. Rd8+ {[%clk 0:00:22]}  Ke7 {[%clk 0:00:01]} 60. f8=Q+ {[%clk 0:00:22]}  Kxe6 {[%clk 0:00:02]} 61. Qe8+ {[%clk 0:00:20]}  Kf5 {[%clk 0:00:02]} 62. Qe5+ {[%clk 0:00:20]}  Kg4 {[%clk 0:00:00]} 63. Rg8+ {[%clk 0:00:20]} 1-0


[Site "https://www.chess.com"]

[Event "Titled Tuesday Blitz July 11 Late 2023"]
[White "Tarasova, Viktoriya"]
[Black "Thorfinnsson, Bragi"]
[WhiteFideId "4175840"]
[BlackFideId "2300958"]
[WhiteElo "2370"]
[BlackElo "2543"]
[Result "1-0"]
[Round "3"]
[TimeControl "180+2"]
[Date "2023.07.11"]
[WhiteClock "0:00:07"]
[BlackClock "0:00:00"]
[Board "109"]

1. d4 {[%clk 0:03:00]}  Nf6 {[%clk 0:02:56]} 2. c4 {[%clk 0:03:00]}  e6 {[%clk 0:02:54]} 3. Nc3 {[%clk 0:03:00]}  c5 {[%clk 0:02:51]} 4. d5 {[%clk 0:02:59]}  exd5 {[%clk 0:02:49]} 5. cxd5 {[%clk 0:03:00]}  d6 {[%clk 0:02:50]} 6. Nf3 {[%clk 0:02:59]}  g6 {[%clk 0:02:49]} 7. Bf4 {[%clk 0:02:59]}  a6 {[%clk 0:02:48]} 8. a4 {[%clk 0:02:58]}  Bg7 {[%clk 0:02:48]} 9. h3 {[%clk 0:02:58]}  O-O {[%clk 0:02:48]} 10. e3 {[%clk 0:02:59]}  Re8 {[%clk 0:02:45]} 11. Nd2 {[%clk 0:02:58]}  Nh5 {[%clk 0:02:42]} 12. Bh2 {[%clk 0:02:56]}  f5 {[%clk 0:02:43]} 13. Be2 {[%clk 0:02:56]}  Nf6 {[%clk 0:02:02]} 14. O-O {[%clk 0:02:55]}  b6 {[%clk 0:01:57]} 15. Nc4 {[%clk 0:02:54]}  Bf8 {[%clk 0:01:58]} 16. Re1 {[%clk 0:02:46]}  Ra7 {[%clk 0:01:57]} 17. Bf1 {[%clk 0:02:45]}  Rg7 {[%clk 0:01:47]} 18. Qb3 {[%clk 0:02:44]}  Rb7 {[%clk 0:01:40]} 19. Nd2 {[%clk 0:02:23]}  b5 {[%clk 0:01:20]} 20. axb5 {[%clk 0:02:16]}  axb5 {[%clk 0:01:21]} 21. Bxb5 {[%clk 0:02:09]}  Bd7 {[%clk 0:01:21]} 22. Qc4 {[%clk 0:02:09]}  Bxb5 {[%clk 0:01:17]} 23. Nxb5 {[%clk 0:02:09]}  Qb6 {[%clk 0:01:17]} 24. Nc3 {[%clk 0:01:58]}  Bg7 {[%clk 0:00:57]} 25. Qd3 {[%clk 0:01:50]}  Rd7 {[%clk 0:00:44]} 26. Nc4 {[%clk 0:01:48]}  Qd8 {[%clk 0:00:44]} 27. Ra8 {[%clk 0:01:44]}  Ne4 {[%clk 0:00:42]} 28. Rea1 {[%clk 0:01:19]}  Qh4 {[%clk 0:00:38]} 29. Nxe4 {[%clk 0:01:01]}  fxe4 {[%clk 0:00:39]} 30. Qb3 {[%clk 0:00:57]}  Rdd8 {[%clk 0:00:29]} 31. Nxd6 {[%clk 0:00:47]}  Rf8 {[%clk 0:00:22]} 32. Bg3 {[%clk 0:00:46]}  Qe7 {[%clk 0:00:21]} 33. Nc4 {[%clk 0:00:28]}  Nd7 {[%clk 0:00:15]} 34. Rxd8 {[%clk 0:00:22]}  Rxd8 {[%clk 0:00:16]} 35. d6 {[%clk 0:00:22]}  Qf7 {[%clk 0:00:16]} 36. Ra7 {[%clk 0:00:17]}  h5 {[%clk 0:00:16]} 37. Qc2 {[%clk 0:00:16]}  Qe6 {[%clk 0:00:13]} 38. Nd2 {[%clk 0:00:11]}  Nf6 {[%clk 0:00:11]} 39. Qc4 {[%clk 0:00:09]}  Qxc4 {[%clk 0:00:06]} 40. Nxc4 {[%clk 0:00:10]}  Nd5 {[%clk 0:00:07]} 41. d7 {[%clk 0:00:08]}  Bxb2 {[%clk 0:00:07]} 42. Bh4 {[%clk 0:00:05]}  Bf6 {[%clk 0:00:06]} 43. Bg3 {[%clk 0:00:04]}  h4 {[%clk 0:00:05]} 44. Bd6 {[%clk 0:00:02]}  Kf7 {[%clk 0:00:03]} 45. Bxc5 {[%clk 0:00:02]}  Ke6 {[%clk 0:00:03]} 46. Bd4 {[%clk 0:00:03]}  Bxd4 {[%clk 0:00:03]} 47. exd4 {[%clk 0:00:03]}  Rxd7 {[%clk 0:00:03]} 48. Rxd7 {[%clk 0:00:03]}  Kxd7 {[%clk 0:00:03]} 49. Ne5+ {[%clk 0:00:03]}  Ke6 {[%clk 0:00:03]} 50. Nxg6 {[%clk 0:00:04]}  Kf5 {[%clk 0:00:04]} 51. Nxh4+ {[%clk 0:00:05]}  Kf4 {[%clk 0:00:05]} 52. g3+ {[%clk 0:00:05]}  Kg5 {[%clk 0:00:04]} 53. Kg2 {[%clk 0:00:06]}  Nc3 {[%clk 0:00:05]} 54. Kg1 {[%clk 0:00:06]}  Ne2+ {[%clk 0:00:05]} 55. Kf1 {[%clk 0:00:06]}  Nxd4 {[%clk 0:00:06]} 56. Ke1 {[%clk 0:00:07]}  Ne6 {[%clk 0:00:02]} 57. Ke2 {[%clk 0:00:07]}  Nc5 {[%clk 0:00:03]} 58. Ke3 {[%clk 0:00:07]}  Nd3 {[%clk 0:00:04]} 59. Kxe4 {[%clk 0:00:07]}  Nxf2+ {[%clk 0:00:04]} 60. Kf3 {[%clk 0:00:08]}  Nxh3 {[%clk 0:00:05]} 61. Kg2 {[%clk 0:00:08]}  Kg4 {[%clk 0:00:00]} 62. Ng6 {[%clk 0:00:07]} 1-0


[Site "https://www.chess.com"]

[Event "Titled Tuesday Blitz July 11 Late 2023"]
[White "Aggelis, Nikolaos"]
[Black "Cluke86"]
[WhiteFideId "4213220"]
[WhiteElo "2537"]
[BlackElo "2355"]
[Result "1-0"]
[Round "3"]
[TimeControl "180+2"]
[Date "2023.07.11"]
[WhiteClock "0:00:40"]
[BlackClock "0:00:02"]
[Board "111"]

1. c4 {[%clk 0:02:58]}  e5 {[%clk 0:02:59]} 2. g3 {[%clk 0:02:56]}  d6 {[%clk 0:02:58]} 3. Bg2 {[%clk 0:02:57]}  f5 {[%clk 0:02:58]} 4. Nc3 {[%clk 0:02:57]}  Be7 {[%clk 0:02:58]} 5. e3 {[%clk 0:02:57]}  Nf6 {[%clk 0:02:58]} 6. Nge2 {[%clk 0:02:57]}  c6 {[%clk 0:02:58]} 7. O-O {[%clk 0:02:56]}  O-O {[%clk 0:02:57]} 8. d3 {[%clk 0:02:47]}  Qe8 {[%clk 0:02:53]} 9. f4 {[%clk 0:02:34]}  Be6 {[%clk 0:02:47]} 10. Qb3 {[%clk 0:02:24]}  Qd7 {[%clk 0:02:40]} 11. Qc2 {[%clk 0:02:13]}  Na6 {[%clk 0:02:39]} 12. a3 {[%clk 0:02:07]}  Bf7 {[%clk 0:02:35]} 13. b4 {[%clk 0:02:06]}  Bh5 {[%clk 0:02:32]} 14. Bb2 {[%clk 0:02:02]}  Nc7 {[%clk 0:02:26]} 15. Rae1 {[%clk 0:02:01]}  a5 {[%clk 0:02:14]} 16. b5 {[%clk 0:01:56]}  cxb5 {[%clk 0:01:57]} 17. cxb5 {[%clk 0:01:57]}  Rac8 {[%clk 0:01:47]} 18. Qa4 {[%clk 0:01:52]}  Bf7 {[%clk 0:01:40]} 19. Bxb7 {[%clk 0:01:41]}  Rb8 {[%clk 0:01:26]} 20. Bc6 {[%clk 0:01:41]}  Qc8 {[%clk 0:01:25]} 21. Qxa5 {[%clk 0:01:39]}  Ncd5 {[%clk 0:01:22]} 22. Nxd5 {[%clk 0:01:37]}  Nxd5 {[%clk 0:01:21]} 23. Qd2 {[%clk 0:01:35]}  e4 {[%clk 0:01:11]} 24. dxe4 {[%clk 0:01:33]}  fxe4 {[%clk 0:01:12]} 25. Bxd5 {[%clk 0:01:32]}  Rxb5 {[%clk 0:01:01]} 26. Bxf7+ {[%clk 0:01:22]}  Rxf7 {[%clk 0:01:02]} 27. Nc3 {[%clk 0:01:19]}  Rb3 {[%clk 0:00:55]} 28. Nxe4 {[%clk 0:01:15]}  d5 {[%clk 0:00:54]} 29. Ng5 {[%clk 0:01:05]}  Rf5 {[%clk 0:00:38]} 30. Be5 {[%clk 0:00:57]}  Qd8 {[%clk 0:00:31]} 31. Nf3 {[%clk 0:00:55]}  Bxa3 {[%clk 0:00:25]} 32. Nd4 {[%clk 0:00:52]}  Bb4 {[%clk 0:00:22]} 33. Qc2 {[%clk 0:00:48]}  Rxe5 {[%clk 0:00:17]} 34. fxe5 {[%clk 0:00:45]}  Rc3 {[%clk 0:00:10]} 35. Qf5 {[%clk 0:00:44]}  Rc7 {[%clk 0:00:02]} 36. Ne6 {[%clk 0:00:40]} 1-0


[Site "https://www.chess.com"]

[Event "Titled Tuesday Blitz July 11 Late 2023"]
[White "Bilan, Danila"]
[Black "Gerbelli Neto, Eduardo"]
[WhiteFideId "24161918"]
[BlackFideId "2103281"]
[WhiteElo "2536"]
[BlackElo "2326"]
[Result "0-1"]
[Round "3"]
[TimeControl "180+2"]
[Date "2023.07.11"]
[WhiteClock "0:00:00"]
[BlackClock "0:00:19"]
[Board "113"]

1. d4 {[%clk 0:03:00]}  d5 {[%clk 0:02:59]} 2. Nf3 {[%clk 0:02:59]}  Nf6 {[%clk 0:02:59]} 3. c4 {[%clk 0:02:59]}  c6 {[%clk 0:02:59]} 4. Nc3 {[%clk 0:02:58]}  e6 {[%clk 0:02:59]} 5. Bg5 {[%clk 0:02:57]}  dxc4 {[%clk 0:02:59]} 6. e4 {[%clk 0:02:55]}  b5 {[%clk 0:02:59]} 7. e5 {[%clk 0:02:55]}  h6 {[%clk 0:02:59]} 8. Bh4 {[%clk 0:02:55]}  g5 {[%clk 0:03:00]} 9. Nxg5 {[%clk 0:02:54]}  Nd5 {[%clk 0:03:01]} 10. Nxf7 {[%clk 0:02:27]}  Qxh4 {[%clk 0:03:01]} 11. Nxh8 {[%clk 0:02:27]}  Bb4 {[%clk 0:03:01]} 12. Rc1 {[%clk 0:02:22]}  c5 {[%clk 0:03:00]} 13. dxc5 {[%clk 0:02:10]}  Nd7 {[%clk 0:02:59]} 14. Be2 {[%clk 0:02:00]}  Nxe5 {[%clk 0:02:59]} 15. O-O {[%clk 0:01:50]}  Bb7 {[%clk 0:02:59]} 16. Bh5+ {[%clk 0:01:43]}  Kd7 {[%clk 0:02:31]} 17. Ng6 {[%clk 0:01:28]}  Nxg6 {[%clk 0:02:28]} 18. Bxg6 {[%clk 0:01:28]}  Rg8 {[%clk 0:02:18]} 19. g3 {[%clk 0:01:21]}  Rxg6 {[%clk 0:02:12]} 20. Nxb5 {[%clk 0:01:08]}  Bxc5 {[%clk 0:02:06]} 21. Qf3 {[%clk 0:00:47]}  Qf6 {[%clk 0:01:32]} 22. Qxf6 {[%clk 0:00:37]}  Rxf6 {[%clk 0:01:33]} 23. Rxc4 {[%clk 0:00:37]}  Bb6 {[%clk 0:01:31]} 24. a4 {[%clk 0:00:07]}  a5 {[%clk 0:01:21]} 25. h4 {[%clk 0:00:06]}  Nb4 {[%clk 0:01:16]} 26. Rg4 {[%clk 0:00:04]}  Bd5 {[%clk 0:01:10]} 27. Rg7+ {[%clk 0:00:04]}  Kc6 {[%clk 0:01:03]} 28. Rc1+ {[%clk 0:00:04]}  Bc5 {[%clk 0:01:04]} 29. Rc7+ {[%clk 0:00:04]}  Kb6 {[%clk 0:01:02]} 30. R1xc5 {[%clk 0:00:05]}  Rf3 {[%clk 0:00:45]} 31. Rc3 {[%clk 0:00:04]}  Rxc3 {[%clk 0:00:41]} 32. Rxc3 {[%clk 0:00:03]}  Nc6 {[%clk 0:00:38]} 33. Re3 {[%clk 0:00:03]}  Kc5 {[%clk 0:00:37]} 34. b3 {[%clk 0:00:03]}  Nd4 {[%clk 0:00:34]} 35. g4 {[%clk 0:00:03]}  Nf3+ {[%clk 0:00:31]} 36. Kf1 {[%clk 0:00:03]}  Nxh4 {[%clk 0:00:32]} 37. Ke2 {[%clk 0:00:03]}  Ng6 {[%clk 0:00:31]} 38. Nc3 {[%clk 0:00:03]}  Nf4+ {[%clk 0:00:28]} 39. Kd2 {[%clk 0:00:03]}  Bxb3 {[%clk 0:00:28]} 40. Ne4+ {[%clk 0:00:03]}  Kb4 {[%clk 0:00:28]} 41. Nc5 {[%clk 0:00:03]}  Bd5 {[%clk 0:00:27]} 42. Nd3+ {[%clk 0:00:02]}  Nxd3 {[%clk 0:00:26]} 43. Kxd3 {[%clk 0:00:03]}  Kxa4 {[%clk 0:00:27]} 44. Kc3 {[%clk 0:00:04]}  Kb5 {[%clk 0:00:27]} 45. Re1 {[%clk 0:00:04]}  a4 {[%clk 0:00:27]} 46. Rb1+ {[%clk 0:00:04]}  Kc5 {[%clk 0:00:25]} 47. Ra1 {[%clk 0:00:04]}  Bb3 {[%clk 0:00:25]} 48. f4 {[%clk 0:00:05]}  Kd5 {[%clk 0:00:26]} 49. Re1 {[%clk 0:00:05]}  Kd6 {[%clk 0:00:22]} 50. Kb4 {[%clk 0:00:05]}  Bc2 {[%clk 0:00:22]} 51. Re5 {[%clk 0:00:03]}  Bd1 {[%clk 0:00:20]} 52. Rh5 {[%clk 0:00:02]}  Bxg4 {[%clk 0:00:19]} 53. Rxh6 {[%clk 0:00:02]}  Bd1 {[%clk 0:00:20]} 54. Rh1 {[%clk 0:00:02]}  Bc2 {[%clk 0:00:19]} 55. Re1 {[%clk 0:00:03]}  Kd5 {[%clk 0:00:19]} 56. Kc3 {[%clk 0:00:04]}  Bf5 {[%clk 0:00:18]} 57. Re5+ {[%clk 0:00:05]}  Kc6 {[%clk 0:00:18]} 58. Kd4 {[%clk 0:00:05]}  Kd6 {[%clk 0:00:18]} 59. Ra5 {[%clk 0:00:06]}  Bc2 {[%clk 0:00:18]} 60. Ra6+ {[%clk 0:00:06]}  Ke7 {[%clk 0:00:18]} 61. Ke5 {[%clk 0:00:07]}  Bb3 {[%clk 0:00:19]} 62. Ra7+ {[%clk 0:00:07]}  Kf8 {[%clk 0:00:19]} 63. Kf6 {[%clk 0:00:07]}  Ke8 {[%clk 0:00:20]} 64. Ke5 {[%clk 0:00:06]}  Kd8 {[%clk 0:00:20]} 65. Kd6 {[%clk 0:00:07]}  Kc8 {[%clk 0:00:20]} 66. Rc7+ {[%clk 0:00:05]}  Kb8 {[%clk 0:00:20]} 67. Kc6 {[%clk 0:00:05]}  Bd5+ {[%clk 0:00:19]} 68. Kb6 {[%clk 0:00:05]}  Bb3 {[%clk 0:00:19]} 69. Rg7 {[%clk 0:00:04]}  Kc8 {[%clk 0:00:19]} 70. Kc6 {[%clk 0:00:04]}  Kd8 {[%clk 0:00:19]} 71. Kd6 {[%clk 0:00:05]}  Ke8 {[%clk 0:00:20]} 72. Re7+ {[%clk 0:00:05]}  Kf8 {[%clk 0:00:20]} 73. Ra7 {[%clk 0:00:06]}  Ke8 {[%clk 0:00:17]} 74. Ke5 {[%clk 0:00:06]}  Kf8 {[%clk 0:00:17]} 75. Kf6 {[%clk 0:00:06]}  Ke8 {[%clk 0:00:18]} 76. Rb7 {[%clk 0:00:07]}  Kd8 {[%clk 0:00:18]} 77. Ra7 {[%clk 0:00:07]}  Kc8 {[%clk 0:00:18]} 78. Ke5 {[%clk 0:00:07]}  Kb8 {[%clk 0:00:19]} 79. Ra5 {[%clk 0:00:07]}  Kc7 {[%clk 0:00:19]} 80. Kd4 {[%clk 0:00:07]}  Kb6 {[%clk 0:00:19]} 81. Ra8 {[%clk 0:00:07]}  Kb7 {[%clk 0:00:19]} 82. Ra5 {[%clk 0:00:06]}  Kb6 {[%clk 0:00:20]} 83. Ra8 {[%clk 0:00:06]}  Kb7 {[%clk 0:00:20]} 84. Rh8 {[%clk 0:00:06]}  a3 {[%clk 0:00:20]} 85. Kc3 {[%clk 0:00:05]}  a2 {[%clk 0:00:19]} 86. Rh1 {[%clk 0:00:04]}  Bd5 {[%clk 0:00:19]} 87. Kb2 {[%clk 0:00:00]}  Bxh1 {[%clk 0:00:19]} 0-1


[Site "https://www.chess.com"]